fUSD/lending_fUSD_20241003
["ID","MTS","AMOUNT","RATE_DAILY","PERIOD"]
[339797822,1727987583259,-13253.31518476,0.00038,4]
[339797823,1727987583269,-5493.85433063,0.00038,4]
[339797824,1727987583279,-3795.87590875,0.00038,4]
[339797825,1727987583289,-5215.64721054,0.00038,4]
[339797826,1727987583299,-151.100317,0.00038048,119]
[339797827,1727987583309,-288.15895152,0.00038082,120]
[339797828,1727987583319,-1830.04,0.00038082,120]
[339797829,1727987583329,-1465.14,0.00038082,120]
[339797830,1727987583339,-731.74,0.00038082,120]
[339797831,1727987583348,-500.0,0.00038082,120]
[339797832,1727987583358,-1375.31,0.00038082,120]
[339797833,1727987583367,-668.57,0.00038082,120]
[339797834,1727987583378,-500.0,0.00038082,120]
[339797835,1727987583388,-1062.68,0.00038082,120]
[339797836,1727987583398,-1108.65,0.00038082,120]
[339797837,1727987583408,-1917.75,0.00038082,120]
[339797838,1727987583417,-1239.66,0.00038082,120]
[339797839,1727987583427,-749.5,0.00038082,120]
[339797840,1727987583437,-1219.3,0.00038082,120]
[339797841,1727987583448,-1706.35,0.00038082,120]
[339797842,1727987583457,-1816.28,0.00038082,120]
[339797843,1727987583466,-608.59,0.00038082,120]
[339797844,1727987583476,-688.2,0.00038082,120]
[339797845,1727987583486,-818.32,0.00038082,120]
[339797846,1727987583495,-2173.75,0.00038082,120]
[339797847,1727987583505,-721.06,0.00038082,120]
[339797848,1727987583515,-2649.5,0.00038082,120]
[339797849,1727987583525,-500.0,0.00038082,120]
[339797850,1727987583535,-500.0,0.00038082,120]
[339797851,1727987583545,-500.0,0.00038082,120]
[339797852,1727987583555,-952.32,0.00038082,120]
[339797853,1727987583565,-508.75,0.00038082,120]
[339797854,1727987583575,-2782.16,0.00038082,120]
[339797855,1727987583584,-500.0,0.00038082,120]
[339797856,1727987583594,-799.66,0.00038082,120]
[339797857,1727987583603,-500.0,0.00038082,120]
[339797858,1727987583613,-528.54,0.00038082,120]
[339797859,1727987583622,-1116.48,0.00038082,120]
[339797860,1727987583632,-500.0,0.00038082,120]
[339797861,1727987583641,-667.6,0.00038082,120]
[339797862,1727987583651,-516.86,0.00038082,120]
[339797863,1727987583660,-577.36,0.00038082,120]
[339797864,1727987583669,-505.24348829,0.00038082,120]
[339797865,1727987583679,-2275.0,0.00038082,120]
[339797866,1727987583689,-1181.76,0.00038082,120]
[339797867,1727987583698,-1059.01,0.00038082,120]
[339797868,1727987583709,-500.0,0.00038082,120]
[339797869,1727987583718,-678.32,0.00038082,120]
[339797870,1727987583728,-246.09436442,0.00038082,120]
[339797871,1727987583738,-908.96,0.00038082,120]
[339797872,1727987583752,-806.47,0.00038082,120]
[339797873,1727987583764,-1850.2,0.00038082,120]
[339797874,1727987583775,-181.70679635,0.00038082,120]
[339797875,1727987583784,-532.65,0.00038082,120]
[339797876,1727987583794,-500.0,0.00038082,120]
[339797877,1727987583803,-221.69912668,0.00038082,120]
[339797878,1727987583813,-951.98,0.00038082,120]
[339797879,1727987583823,-3113.1,0.00038082,120]
[339797880,1727987583833,-952.18,0.00038082,120]
[339797881,1727987583843,-1578.27,0.00038082,120]
[339797882,1727987583853,-799.85,0.00038082,120]
[339797883,1727987583863,-708.6,0.00038082,120]
[339797884,1727987583877,-584.82,0.00038082,120]
[339797885,1727987583886,-560.83,0.00038082,120]
[339797886,1727987583895,-610.78,0.00038082,120]
[339797887,1727987583905,-1249.01,0.00038082,120]
[339797888,1727987583914,-500.0,0.00038082,120]
[339797889,1727987583925,-1225.26,0.00038082,120]
[339797890,1727987583934,-817.82,0.00038082,120]
[339797891,1727987583945,-911.79,0.00038082,120]
[339797892,1727987583957,-1292.49,0.00038082,7]
[339797893,1727987583967,-517.59,0.00038082,120]
[339797894,1727987583976,-762.72,0.00038082,120]
[339797895,1727987583985,-1184.87,0.00038082,120]
[339797896,1727987583995,-1701.57,0.00038082,120]
[339797897,1727987584017,-714.2,0.00038082,120]
[339797898,1727987584026,-1396.71,0.00038082,120]
[339797899,1727987584036,-1713.42,0.00038082,120]
[339797900,1727987584046,-676.51,0.00038082,120]
[339797901,1727987584055,-543.4,0.00038082,120]
[339797902,1727987584065,-615.69,0.00038082,120]
[339797903,1727987584075,-675.57,0.00038082,120]
[339797904,1727987584085,-822.0,0.00038082,120]
[339797905,1727987584095,-781.4,0.00038082,120]
[339797906,1727987584105,-579.42431298,0.00038082,120]
[339797907,1727987584115,-747.69,0.00038082,120]
[339797908,1727987584126,-500.0,0.00038082,120]
[339797909,1727987584135,-911.34,0.00038082,120]
[339797910,1727987584145,-617.77,0.00038082,120]
[339797911,1727987584155,-500.0,0.00038082,120]
[339797912,1727987584165,-1099.61,0.00038082,120]
[339797913,1727987584175,-1245.73,0.00038082,120]
[339797914,1727987584186,-605.0,0.00038082,120]
[339797915,1727987584196,-614.52,0.00038082,120]
[339797916,1727987584206,-570.35,0.00038082,120]
[339797917,1727987584216,-806.75,0.00038082,120]
[339797918,1727987584226,-761.4,0.00038082,120]
[339797919,1727987584235,-500.0,0.00038082,120]
[339797920,1727987584245,-1016.56,0.00038082,120]
[339797921,1727987584267,-908.19,0.00038082,120]
[339797922,1727987584277,-650.02,0.00038082,120]
[339797923,1727987584288,-2907.54,0.00038082,120]
[339797924,1727987584297,-1955.84,0.00038082,120]
[339797925,1727987584307,-666.23,0.00038082,120]
[339797926,1727987584317,-619.0,0.00038082,120]
[339797927,1727987584327,-1476.07,0.00038082,120]
[339797928,1727987584336,-200.0,0.00038082,7]
[339797929,1727987584346,-664.13,0.00038082,120]
[339797930,1727987584355,-580.92,0.00038082,120]
[339797931,1727987584365,-559.23,0.00038082,120]
[339797932,1727987584375,-682.12,0.00038082,120]
[339797933,1727987584385,-662.07,0.00038082,120]
[339797934,1727987584395,-1017.64,0.00038082,120]
[339797935,1727987584405,-1843.32,0.00038082,120]
[339797936,1727987584414,-929.85,0.00038082,120]
[339797937,1727987584424,-903.96,0.00038082,120]
[339797938,1727987584434,-1244.9,0.00038082,120]
[339797939,1727987584443,-2059.5,0.00038082,120]
[339797940,1727987584453,-1208.85,0.00038082,120]
[339797941,1727987584462,-1392.18,0.00038082,120]
[339797942,1727987584471,-1754.22,0.00038082,120]
[339797943,1727987584481,-838.34,0.00038082,120]
[339797944,1727987584491,-476.63706735,0.00038082,120]
[339797945,1727987584513,-3096.26,0.00038082,120]
[339797946,1727987584522,-767.37,0.00038082,120]
[339797947,1727987584532,-1262.93,0.00038082,120]
[339797948,1727987584541,-546.33,0.00038082,120]
[339797949,1727987584551,-1915.72,0.00038082,120]
[339797950,1727987584561,-871.88,0.00038082,120]
[339797951,1727987584571,-900.49,0.00038082,120]
[339797952,1727987584581,-542.05,0.00038082,120]
[339797953,1727987584591,-1246.58,0.00038082,120]
[339797954,1727987584600,-755.2,0.00038082,120]
[339797955,1727987584610,-515.39,0.00038082,120]
[339797956,1727987584620,-1449.61,0.00038082,120]
[339797957,1727987584630,-615.97,0.00038082,120]
[339797958,1727987584640,-500.0,0.00038082,120]
[339797959,1727987584649,-828.98,0.00038082,120]
[339797960,1727987584659,-522.48,0.00038082,120]
[339797961,1727987584670,-769.93,0.00038082,120]
[339797962,1727987584680,-594.29219874,0.00038082,120]
[339797963,1727987584689,-1535.42,0.00038082,120]
[339797964,1727987584699,-692.01,0.00038082,120]
[339797965,1727987584709,-617.57,0.00038082,120]
[339797966,1727987584718,-1322.47,0.00038082,120]
[339797967,1727987584728,-3041.51,0.00038082,120]
[339797968,1727987584737,-685.28,0.00038082,120]
[339797969,1727987584751,-1088.33,0.00038082,120]
[339797970,1727987584760,-678.3,0.00038082,120]
[339797971,1727987584854,-809.97,0.00038082,120]
[339797972,1727987584891,-617.35,0.00038082,120]
[339797973,1727987584901,-500.0,0.00038082,120]
[339797974,1727987584911,-504.49,0.00038082,120]
[339797975,1727987584922,-2582.55,0.00038082,14]
[339797976,1727987584932,-821.22,0.00038082,120]
[339797977,1727987584942,-1192.92,0.00038082,120]
[339797978,1727987584954,-2036.76,0.00038082,2]
[339797979,1727987584964,-752.83,0.00038082,120]
[339797980,1727987584974,-696.33,0.00038082,120]
[339797981,1727987584984,-1822.29,0.00038082,120]
[339797982,1727987584994,-500.0,0.00038082,120]
[339797983,1727987585007,-1595.23,0.00038082,120]
[339797984,1727987585017,-1676.96,0.00038082,120]
[339797985,1727987585027,-500.0,0.00038082,120]
[339797986,1727987585036,-1430.65,0.00038082,120]
[339797987,1727987585045,-1022.58,0.00038082,120]
[339797988,1727987585055,-572.51,0.00038082,120]
[339797989,1727987585065,-743.36,0.00038082,120]
[339797990,1727987585075,-534.34,0.00038082,120]
[339797991,1727987585086,-722.75,0.00038082,120]
[339797992,1727987585096,-2933.87,0.00038082,120]
[339797993,1727987585106,-891.75,0.00038082,120]
[339797994,1727987585115,-734.12,0.00038082,120]
[339797995,1727987585125,-830.44,0.00038082,120]
[339797996,1727987585134,-2736.92,0.00038082,120]
[339797997,1727987585144,-2840.63,0.00038082,120]
[339797998,1727987585154,-1668.6,0.00038082,120]
[339797999,1727987585163,-963.2,0.00038082,120]
[339798000,1727987585173,-3064.64,0.00038082,120]
[339798001,1727987585183,-895.53,0.00038082,120]
[339798002,1727987585193,-603.25,0.00038082,120]
[339798003,1727987585202,-893.66,0.00038082,120]
[339798004,1727987585211,-1265.22,0.00038082,120]
[339798005,1727987585221,-648.93,0.00038082,120]
[339798006,1727987585231,-702.69,0.00038082,120]
[339798007,1727987585241,-912.75,0.00038082,120]
[339798008,1727987585260,-625.95,0.00038082,120]
[339798009,1727987585270,-500.0,0.00038082,120]
[339798010,1727987585280,-589.87,0.00038082,120]
[339798011,1727987585290,-904.15,0.00038082,120]
[339798012,1727987585299,-809.38,0.00038082,120]
[339798013,1727987585308,-2849.48,0.00038082,120]
[339798014,1727987585318,-1583.67,0.00038082,120]
[339798015,1727987585327,-1559.78,0.00038082,120]
[339798016,1727987585338,-526.9,0.00038082,120]
[339798017,1727987585347,-887.97,0.00038082,120]
[339798018,1727987585357,-522.66,0.00038082,120]
[339798019,1727987585367,-608.69,0.00038082,120]
[339798020,1727987585377,-1196.23,0.00038082,120]
[339798021,1727987585387,-1435.23,0.00038082,120]
[339798022,1727987585395,-1891.17,0.00038082,120]
[339798023,1727987585405,-734.62,0.00038082,120]
[339798024,1727987585415,-1907.44,0.00038082,120]
[339798025,1727987585425,-500.0,0.00038082,5]
[339798026,1727987585434,-954.92,0.00038082,30]
[339798027,1727987585444,-760.37,0.00038082,120]
[339798028,1727987585454,-1267.83,0.00038082,120]
[339798029,1727987585463,-500.0,0.00038082,120]
[339798030,1727987585473,-692.31,0.00038082,120]
[339798031,1727987585482,-3152.28,0.00038082,120]
[339798032,1727987585492,-4273.85,0.00038082,2]
[339798033,1727987585504,-2240.67,0.00038082,120]
[339798034,1727987585514,-566.42,0.00038082,120]
[339798035,1727987585524,-1375.15,0.00038082,120]
[339798036,1727987585534,-1352.94,0.00038082,120]
[339798037,1727987585544,-2143.59,0.00038082,120]
[339798038,1727987585553,-2552.25,0.00038082,120]
[339798039,1727987585563,-807.0,0.00038082,120]
[339798040,1727987585572,-1929.43,0.00038082,120]
[339798041,1727987585582,-500.0,0.00038082,120]
[339798042,1727987585592,-500.0,0.00038082,120]
[339798043,1727987585603,-687.7,0.00038082,120]
[339798044,1727987585612,-685.66,0.00038082,120]
[339798045,1727987585622,-1124.73,0.00038082,120]
[339798046,1727987585633,-500.0,0.00038082,120]
[339798047,1727987585642,-382.02467816,0.00038082,120]
[339798048,1727987585652,-1267.04,0.00038082,120]
[339798049,1727987585662,-1073.96,0.00038082,120]
[339798050,1727987585672,-515.88,0.00038082,120]
[339798051,1727987585682,-924.47,0.00038082,120]
[339798052,1727987585692,-687.49,0.00038082,120]
[339798053,1727987585701,-3529.62,0.00038082,120]
[339798054,1727987585712,-2122.92,0.00038082,120]
[339798055,1727987585722,-583.93,0.00038082,120]
[339798056,1727987585731,-1443.8,0.00038082,120]
[339798057,1727987585741,-598.1,0.00038082,120]
[339798058,1727987585752,-1130.17,0.00038082,120]
[339798059,1727987585762,-500.0,0.00038082,120]
[339798060,1727987585772,-512.25,0.00038082,120]
[339798061,1727987585782,-739.66,0.00038082,120]
[339798062,1727987585792,-2221.7,0.00038082,120]
[339798063,1727987585802,-878.47,0.00038082,120]
[339798064,1727987585811,-753.47,0.00038082,120]
[339798065,1727987585821,-2105.23,0.00038082,120]
[339798066,1727987585831,-1101.24,0.00038082,120]
[339798067,1727987585841,-880.23,0.00038082,120]
[339798068,1727987585851,-227.5310498,0.00038082,120]
[339798069,1727987585861,-594.49,0.00038082,120]
[339798070,1727987585873,-500.0,0.00038082,120]
[339798071,1727987585884,-1746.33,0.00038082,120]
[339798072,1727987585894,-983.59,0.00038082,120]
[339798073,1727987585904,-1535.26,0.00038082,120]
[339798074,1727987585914,-3156.06,0.00038082,120]
[339798075,1727987585924,-889.14,0.00038082,120]
[339798076,1727987585934,-754.45,0.00038082,120]
[339798077,1727987585944,-640.32,0.00038082,120]
[339798078,1727987585956,-2375.19,0.00038082,120]
[339798079,1727987585966,-580.84,0.00038082,120]
[339798080,1727987585975,-2171.15,0.00038082,120]
[339798081,1727987585986,-652.15,0.00038082,120]
[339798082,1727987585998,-970.9,0.00038082,120]
[339798083,1727987586008,-576.98,0.00038082,120]
[339798084,1727987586018,-2322.76,0.00038082,120]
[339798085,1727987586027,-2446.1,0.00038082,120]
[339798086,1727987586037,-500.0,0.00038082,120]
[339798087,1727987586047,-569.39,0.00038082,120]
[339798088,1727987586059,-865.83,0.00038082,120]
[339798089,1727987586069,-235.49076717,0.00038082,120]
[339798090,1727987586079,-559.14,0.00038082,120]
[339798091,1727987586088,-526.15,0.00038082,120]
[339798092,1727987586099,-500.0,0.00038082,120]
[339798093,1727987586108,-1022.47,0.00038082,120]
[339798094,1727987586119,-1404.02,0.00038082,120]
[339798095,1727987586129,-500.0,0.00038082,120]
[339798096,1727987586139,-641.91,0.00038082,120]
[339798097,1727987586149,-926.29,0.00038082,120]
[339798098,1727987586159,-796.9,0.00038082,120]
[339798099,1727987586168,-2021.14,0.00038082,120]
[339798100,1727987586178,-3420.05,0.00038082,120]
[339798101,1727987586188,-585.28,0.00038082,120]
[339798102,1727987586199,-500.0,0.00038082,120]
[339798103,1727987586208,-920.88,0.00038082,120]
[339798104,1727987586217,-1372.22,0.00038082,120]
[339798105,1727987586226,-501.73,0.00038082,120]
[339798106,1727987586236,-1014.09,0.00038082,120]
[339798107,1727987586248,-2342.53,0.00038082,120]
[339798108,1727987586257,-849.67,0.00038082,120]
[339798109,1727987586266,-503.33,0.00038082,120]
[339798110,1727987586276,-650.32,0.00038082,120]
[339798111,1727987586285,-619.95,0.00038082,120]
[339798112,1727987586296,-4513.04,0.00038082,120]
[339798113,1727987586305,-697.86,0.00038082,120]
[339798114,1727987586315,-1906.45,0.00038082,120]
[339798115,1727987586324,-500.0,0.00038082,120]
[339798116,1727987586335,-1342.8,0.00038082,120]
[339798117,1727987586346,-345.30182058,0.00038082,120]
[339798118,1727987586356,-4469.7,0.00038082,120]
[339798119,1727987586366,-2820.31,0.00038082,120]
[339798120,1727987586376,-1714.59,0.00038082,120]
[339798121,1727987586385,-1567.97,0.00038082,120]
[339798122,1727987586395,-858.96,0.00038082,120]
[339798123,1727987586405,-1071.24,0.00038082,120]
[339798124,1727987586414,-1083.26,0.00038082,120]
[339798125,1727987586424,-1923.73,0.00038082,120]
[339798126,1727987586433,-3953.73,0.00038082,120]
[339798127,1727987586442,-646.54,0.00038082,120]
[339798128,1727987586452,-1541.86,0.00038082,120]
[339798129,1727987586462,-2326.51,0.00038082,120]
[339798130,1727987586471,-825.35,0.00038082,120]
[339798131,1727987586480,-1401.87,0.00038082,120]
[339798132,1727987586489,-8162.3,0.00038082,120]
[339798133,1727987586500,-2202.86,0.00038082,3]
[339798134,1727987586509,-1721.6,0.00038082,120]
[339798135,1727987586519,-1824.09,0.00038082,120]
[339798136,1727987586529,-797.25,0.00038082,120]
[339798137,1727987586538,-3694.14,0.00038082,120]
[339798138,1727987586547,-648.29,0.00038082,120]
[339798139,1727987586556,-1962.84,0.00038082,120]
[339798140,1727987586566,-770.99,0.00038082,120]
[339798141,1727987586576,-1812.58,0.00038082,120]
[339798142,1727987586587,-1106.97,0.00038082,120]
[339798143,1727987586596,-995.24,0.00038082,120]
[339798144,1727987586606,-1533.42,0.00038082,120]
[339798145,1727987586614,-1245.45,0.00038082,120]
[339798146,1727987586624,-2708.28,0.00038082,120]
[339798147,1727987586634,-919.76,0.00038082,120]
[339798148,1727987586644,-1028.68,0.00038082,120]
[339798149,1727987586654,-2392.87,0.00038082,120]
[339798150,1727987586664,-1219.91,0.00038082,120]
[339798151,1727987586673,-1971.05,0.00038082,120]
[339798152,1727987586682,-967.14,0.00038082,120]
[339798153,1727987586692,-11039.47,0.00038082,120]
[339798154,1727987586701,-1835.01,0.00038082,120]
[339798155,1727987586711,-647.95,0.00038082,120]
[339798156,1727987586720,-1066.51,0.00038082,120]
[339798157,1727987586730,-2065.61,0.00038082,120]
[339798158,1727987586740,-2041.33,0.00038082,120]
[339798159,1727987586750,-701.71,0.00038082,120]
[339798160,1727987586760,-512.38,0.00038082,120]
[339798161,1727987586770,-527.76,0.00038082,120]
[339798162,1727987586779,-527.0,0.00038082,120]
[339798163,1727987586790,-1302.4,0.00038082,120]
[339798164,1727987586799,-968.42,0.00038082,120]
[339798165,1727987586809,-1041.18,0.00038082,120]
[339798166,1727987586819,-1510.82,0.00038082,120]
[339798167,1727987586829,-2058.43,0.00038082,120]
[339798168,1727987586839,-1635.85,0.00038082,120]
[339798169,1727987586849,-2566.99,0.00038082,120]
[339798170,1727987586858,-500.52,0.00038082,120]
[339798171,1727987586867,-1123.06,0.00038082,120]
[339798172,1727987586880,-1766.39,0.00038082,120]
[339798173,1727987586888,-1421.18,0.00038082,120]
[339798174,1727987586899,-2301.76,0.00038082,120]
[339798175,1727987586908,-1093.77,0.00038082,120]
[339798176,1727987586918,-2041.08,0.00038082,120]
[339798177,1727987586928,-1056.72,0.00038082,120]
[339798178,1727987586938,-202.16980461,0.00038082,120]
[339798179,1727987586948,-4824.18,0.00038082,120]
[339798180,1727987586959,-575.99,0.00038082,120]
[339798181,1727987586969,-2539.88,0.00038082,120]
[339798182,1727987586978,-1031.81,0.00038082,120]
[339798183,1727987586988,-1058.32,0.00038082,120]
[339798184,1727987587000,-500.0,0.00038082,120]
[339798185,1727987587009,-2770.27,0.00038082,120]
[339798186,1727987587018,-2126.28,0.00038082,120]
[339798187,1727987587028,-3109.58,0.00038082,120]
[339798188,1727987587037,-1989.39,0.00038082,120]
[339798189,1727987587047,-2838.83,0.00038082,120]
[339798190,1727987587346,-2454.73,0.00038082,120]
[339798191,1727987587361,-2489.9,0.00038082,120]
[339798192,1727987587371,-1548.63,0.00038082,120]
[339798193,1727987587381,-1539.86,0.00038082,120]
[339798194,1727987587391,-1135.51,0.00038082,120]
[339798195,1727987587400,-751.5,0.00038082,120]
[339798196,1727987587410,-26307.75,0.00038082,120]
[339798197,1727987587420,-1359.32,0.00038082,120]
[339798198,1727987587430,-920.13,0.00038082,120]
[339798199,1727987587439,-2373.28,0.00038082,120]
[339798200,1727987587449,-723.9,0.00038082,120]
[339798201,1727987587458,-500.0,0.00038082,120]
[339798202,1727987587468,-683.05,0.00038082,120]
[339798203,1727987587478,-1328.33,0.00038082,120]
[339798204,1727987587487,-1718.99,0.00038082,120]
[339798205,1727987587498,-2515.59,0.00038082,120]
[339798206,1727987587507,-500.0,0.00038082,120]
[339798207,1727987587517,-953.41,0.00038082,120]
[339798208,1727987587527,-876.22,0.00038082,120]
[339798209,1727987587536,-2264.01,0.00038082,120]
[339798210,1727987587546,-2588.02,0.00038082,120]
[339798211,1727987587556,-1281.35,0.00038082,120]
[339798212,1727987587566,-1057.1,0.00038082,120]
[339798213,1727987587575,-1543.66,0.00038082,120]
[339798214,1727987587585,-567.28,0.00038082,120]
[339798215,1727987587595,-1173.73,0.00038082,120]
[339798216,1727987587604,-622.45,0.00038082,120]
[339798217,1727987587615,-831.03,0.00038082,120]
[339798218,1727987587627,-574.46,0.00038082,120]
[339798219,1727987587637,-605.72,0.00038082,120]
[339798220,1727987587647,-656.14,0.00038082,24]
[339798221,1727987587657,-999.57,0.00038082,120]
[339798222,1727987587666,-1059.55,0.00038082,120]
[339798223,1727987587676,-1114.36,0.00038082,120]
[339798224,1727987587686,-2557.98,0.00038082,120]
[339798225,1727987587696,-2619.08,0.00038082,120]
[339798226,1727987587705,-985.85,0.00038082,120]
[339798227,1727987587715,-2196.8,0.00038082,120]
[339798228,1727987587725,-1368.57,0.00038082,120]
[339798229,1727987587734,-534.46,0.00038082,120]
[339798230,1727987587744,-623.45,0.00038082,120]
[339798231,1727987587755,-1760.97,0.00038082,120]
[339798232,1727987587765,-4833.89,0.00038082,120]
[339798233,1727987587775,-1036.03,0.00038082,120]
[339798234,1727987587784,-613.95,0.00038082,120]
[339798235,1727987587794,-1295.57,0.00038082,120]
[339798236,1727987587803,-1100.59,0.00038082,120]
[339798237,1727987587813,-1437.23,0.00038082,120]
[339798238,1727987587823,-581.64,0.00038082,120]
[339798239,1727987587832,-500.0,0.00038082,120]
[339798240,1727987587842,-1584.05,0.00038082,120]
[339798241,1727987587851,-500.0,0.00038082,120]
[339798242,1727987587861,-1739.53,0.00038082,120]
[339798243,1727987587871,-780.59,0.00038082,120]
[339798244,1727987587884,-567.89,0.00038082,120]
[339798245,1727987587894,-1002.66,0.00038082,120]
[339798246,1727987587904,-10179.37,0.00038082,120]
[339798247,1727987587914,-504.47,0.00038082,120]
[339798248,1727987587924,-859.91,0.00038082,120]
[339798249,1727987587934,-8270.07,0.00038082,21]
[339798250,1727987587943,-669.41,0.00038082,120]
[339798251,1727987587956,-4586.08,0.00038082,120]
[339798252,1727987587967,-2304.02,0.00038082,120]
[339798253,1727987587977,-631.12,0.00038082,120]
[339798254,1727987587986,-1138.44,0.00038082,120]
[339798255,1727987587996,-811.67,0.00038082,120]
[339798256,1727987588005,-151.100218,0.00038148,120]
[339798257,1727987588014,-66494.24961993,0.0003818,30]
[339798258,1727987588024,-10097.0,0.00038188,8]
[339798259,1727987588033,-1416.79,0.00038198,2]
[339798260,1727987588042,-4314.22331865,0.0003823,30]
[339798261,1727987588052,-151.100317,0.00038248,119]
[339798262,1727987588061,-1000000.0,0.0003825,120]
[339798263,1727987588071,-2251.5019805,0.00038297,7]
[339798264,1727987588080,-3007.50576663,0.00038297,7]
[339798265,1727987588089,-2899.87242423,0.00038297,7]
[339798266,1727987588099,-151.100218,0.00038348,120]
[339798267,1727987588108,-1830.04,0.00038356,120]
[339798268,1727987588118,-1465.14,0.00038356,120]
[339798269,1727987588127,-731.74,0.00038356,120]
[339798270,1727987588136,-603.80839038,0.00038356,120]
[339798271,1727987588145,-1375.31,0.00038356,120]
[339798272,1727987588155,-668.57,0.00038356,120]
[339798273,1727987588165,-500.0,0.00038356,120]
[339798274,1727987588175,-1062.68,0.00038356,120]
[339798275,1727987588184,-1108.65,0.00038356,120]
[339798276,1727987588194,-1917.75,0.00038356,120]
[339798277,1727987588203,-1239.66,0.00038356,120]
[339798278,1727987588216,-749.5,0.00038356,120]
[339798279,1727987588226,-1219.3,0.00038356,120]
[339798280,1727987588236,-1706.35,0.00038356,120]
[339798281,1727987588247,-1816.28,0.00038356,120]
[339798282,1727987588257,-608.59,0.00038356,120]
[339798283,1727987588266,-688.2,0.00038356,120]
[339798284,1727987588276,-818.32,0.00038356,120]
[339798285,1727987588286,-2173.75,0.00038356,120]
[339798286,1727987588296,-721.06,0.00038356,120]
[339798287,1727987588305,-2649.5,0.00038356,120]
[339798288,1727987588315,-500.0,0.00038356,120]
[339798289,1727987588326,-500.0,0.00038356,120]
[339798290,1727987588336,-647.77655467,0.00038356,120]
[339798291,1727987588346,-952.32,0.00038356,120]
[339798292,1727987588355,-508.75,0.00038356,120]
[339798293,1727987588365,-2782.16,0.00038356,120]
[339798294,1727987588374,-500.0,0.00038356,120]
[339798295,1727987588383,-799.66,0.00038356,120]
[339798296,1727987588392,-418.32312101,0.00038356,120]
[339798297,1727987588402,-528.54,0.00038356,120]
[339798298,1727987588411,-1116.48,0.00038356,120]
[339798299,1727987588421,-500.0,0.00038356,120]
[339798300,1727987588430,-667.6,0.00038356,120]
[339798301,1727987588439,-516.86,0.00038356,120]
[339798302,1727987588449,-577.36,0.00038356,120]
[339798303,1727987588458,-2275.0,0.00038356,120]
[339798304,1727987588467,-1181.76,0.00038356,120]
[339798305,1727987588477,-1059.01,0.00038356,120]
[339798306,1727987588486,-500.0,0.00038356,120]
[339798307,1727987588496,-678.32,0.00038356,120]
[339798308,1727987588517,-908.96,0.00038356,120]
[339798309,1727987588526,-806.47,0.00038356,120]
[339798310,1727987588535,-1850.2,0.00038356,120]
[339798311,1727987588545,-532.65,0.00038356,120]
[339798312,1727987588554,-622.3853414,0.00038356,120]
[339798313,1727987588564,-951.98,0.00038356,120]
[339798314,1727987588573,-3113.1,0.00038356,120]
[339798315,1727987588583,-952.18,0.00038356,120]
[339798316,1727987588593,-1578.27,0.00038356,120]
[339798317,1727987588602,-799.85,0.00038356,120]
[339798318,1727987588613,-708.6,0.00038356,120]
[339798319,1727987588622,-584.82,0.00038356,120]
[339798320,1727987588632,-560.83,0.00038356,120]
[339798321,1727987588641,-610.78,0.00038356,120]